[Event "Schack-SM 2023: Veteran-SM 65+"]
[Site "Helsingborg Arena, Mellersta Stenbocksgatan 14, Helsingborg, Sweden"]
[Date "2023.07.04"]
[Round "4.6"]
[White "Franzen Hogberg, Thomas"]
[Black "Alfven, Jorgen"]
[Result "1-0"]
[TimeControl "90 minutes for 40 moves + 30 minutes for the rest of games + 30 seconds per move from move one."]
[WhiteElo "1998"]
[BlackElo "1726"]

1. b3 {[%clk 01:30:40]} {[%emt 00:00:19]} e5 {[%clk 01:29:53]} {[%emt
00:01:07]} 2. Bb2 {[%clk 01:30:56]} {[%emt 00:00:14]} d6 {[%clk 01:29:52]}
{[%emt 00:00:30]} 3. c4 {[%clk 01:30:41]} {[%emt 00:00:45]} Nf6 {[%clk
01:29:19]} {[%emt 00:01:03]} 4. e3 {[%clk 01:29:23]} {[%emt 00:01:48]} Be7
{[%clk 01:24:51]} {[%emt 00:04:57]} 5. Nf3 {[%clk 01:20:49]} {[%emt 00:09:05]}
O-O {[%clk 01:21:29]} {[%emt 00:03:52]} 6. d3 {[%clk 01:15:47]} {[%emt
00:05:34]} Bg4 {[%clk 01:14:26]} {[%emt 00:07:32]} 7. h3 {[%clk 01:14:23]}
{[%emt 00:01:53]} Bh5 {[%clk 01:12:03]} {[%emt 00:02:53]} 8. Nbd2 {[%clk
01:10:42]} {[%emt 00:04:11]} Nbd7 {[%clk 01:01:45]} {[%emt 00:10:48]} 9. Qc2
{[%clk 01:05:32]} {[%emt 00:05:41]} Ne8 {[%clk 00:56:23]} {[%emt 00:05:51]} 10.
d4 {[%clk 01:00:06]} {[%emt 00:05:57]} Bg6 {[%clk 00:53:01]} {[%emt 00:03:51]}
11. Bd3 {[%clk 01:00:10]} {[%emt 00:00:26]} Bxd3 {[%clk 00:38:59]} {[%emt
00:14:32]} 12. Qxd3 {[%clk 01:00:08]} {[%emt 00:00:32]} exd4 {[%clk 00:37:22]}
{[%emt 00:02:07]} 13. exd4 {[%clk 00:57:44]} {[%emt 00:02:55]} Ndf6 {[%clk
00:32:43]} {[%emt 00:05:09]} 14. O-O {[%clk 00:53:18]} {[%emt 00:04:56]} g6
{[%clk 00:31:02]} {[%emt 00:02:10]} 15. Rfe1 {[%clk 00:49:15]} {[%emt
00:04:34]} Ng7 {[%clk 00:31:08]} {[%emt 00:00:23]} 16. d5 {[%clk 00:44:55]}
{[%emt 00:04:51]} Nfh5 {[%clk 00:25:57]} {[%emt 00:05:41]} 17. g4 {[%clk
00:34:05]} {[%emt 00:11:19]} Bf6 {[%clk 00:20:39]} {[%emt 00:05:48]} 18. Nd4
{[%clk 00:33:06]} {[%emt 00:01:29]} Nf4 {[%clk 00:18:14]} {[%emt 00:02:56]} 19.
Qf3 {[%clk 00:31:41]} {[%emt 00:01:54]} Be5 {[%clk 00:16:28]} {[%emt 00:02:16]}
20. Re4 {[%clk 00:31:24]} {[%emt 00:00:48]} g5 {[%clk 00:11:12]} {[%emt
00:05:46]} 21. Bc3 {[%clk 00:24:47]} {[%emt 00:07:06]} Qd7 {[%clk 00:06:42]}
{[%emt 00:05:00]} 22. Rae1 {[%clk 00:12:12]} {[%emt 00:13:05]} Rae8 {[%clk
00:04:12]} {[%emt 00:03:00]} 23. R4e3 {[%clk 00:07:40]} {[%emt 00:05:02]} f5
{[%clk 00:03:32]} {[%emt 00:01:10]} 24. gxf5 {[%clk 00:07:09]} {[%emt
00:01:01]} Nxf5 {[%clk 00:03:59]} {[%emt 00:00:03]} 25. Nxf5 {[%clk 00:07:28]}
{[%emt 00:00:11]} Qxf5 {[%clk 00:03:45]} {[%emt 00:00:43]} 26. Bxe5 {[%clk
00:07:26]} {[%emt 00:00:34]} Rxe5 {[%clk 00:03:50]} {[%emt 00:00:25]} 27. Ne4
{[%clk 00:06:19]} {[%emt 00:01:36]} Rfe8 {[%clk 00:02:32]} {[%emt 00:01:49]} 28.
Qg4 {[%clk 00:05:36]} {[%emt 00:01:13]} Qxg4+ {[%clk 00:01:29]} {[%emt
00:01:33]} 29. hxg4 {[%clk 00:05:58]} {[%emt 00:00:08]} Kg7 {[%clk 00:01:37]}
{[%emt 00:00:22]} 30. Nxg5 {[%clk 00:05:47]} {[%emt 00:00:40]} h6 {[%clk
00:01:16]} {[%emt 00:00:51]} 31. Rxe5 {[%clk 00:03:07]} {[%emt 00:03:10]} Rxe5
{[%clk 00:01:06]} {[%emt 00:00:41]} 32. Rxe5 {[%clk 00:02:52]} {[%emt
00:00:46]} dxe5 {[%clk 00:01:31]} {[%emt 00:00:04]} 33. Ne4 {[%clk 00:03:13]}
{[%emt 00:00:08]} Ne2+ {[%clk 00:01:42]} {[%emt 00:00:19]} 34. Kf1 {[%clk
00:03:29]} {[%emt 00:00:15]} Nc1 {[%clk 00:02:02]} {[%emt 00:00:09]} 35. Nc3
{[%clk 00:03:54]} {[%emt 00:00:06]} Kf6 {[%clk 00:01:02]} {[%emt 00:01:29]} 36.
f3 {[%clk 00:04:08]} {[%emt 00:00:16]} Kg5 {[%clk 00:01:10]} {[%emt 00:00:22]}
37. Kf2 {[%clk 00:04:23]} {[%emt 00:00:15]} Nd3+ {[%clk 00:01:10]} {[%emt
00:00:30]} 38. Ke3 {[%clk 00:04:42]} {[%emt 00:00:12]} Nf4 {[%clk 00:00:55]}
{[%emt 00:00:44]} 39. Ne4+ {[%clk 00:03:44]} {[%emt 00:01:29]} Kg6 {[%clk
00:01:07]} {[%emt 00:00:17]} 40. Nc5 {[%clk 00:04:02]} {[%emt 00:00:12]} b6
{[%clk 00:00:40]} {[%emt 00:00:58]} 41. Nd7 {[%clk 00:04:25]} {[%emt 00:00:06]}
Ng2+ {[%clk 00:26:57]} {[%emt 00:04:13]} 42. Ke4 {[%clk 00:34:37]} {[%emt
00:00:18]} h5 {[%clk 00:23:36]} {[%emt 00:03:52]} 43. Nxe5+ {[%clk 00:32:52]}
{[%emt 00:02:14]} Kg5 {[%clk 00:23:44]} {[%emt 00:00:22]} 44. gxh5 {[%clk
00:32:46]} {[%emt 00:00:37]} Kxh5 {[%clk 00:24:04]} {[%emt 00:00:10]} 45. f4
{[%clk 00:31:49]} {[%emt 00:01:27]} Kh6 {[%clk 00:23:40]} {[%emt 00:00:53]} 46.
Nf7+ {[%clk 00:32:05]} {[%emt 00:00:15]} Kg6 {[%clk 00:23:58]} {[%emt
00:00:11]} 47. Nd8 {[%clk 00:32:29]} {[%emt 00:00:06]} Kf6 {[%clk 00:23:57]}
{[%emt 00:00:31]} 48. Nc6 {[%clk 00:29:06]} {[%emt 00:03:54]} a5 {[%clk
00:23:35]} {[%emt 00:00:52]} 49. a4 {[%clk 00:28:50]} {[%emt 00:00:47]} Ne1
{[%clk 00:23:27]} {[%emt 00:00:35]} 50. b4 {[%clk 00:29:13]} {[%emt 00:00:08]}
axb4 {[%clk 00:22:39]} {[%emt 00:01:18]} 51. Nxb4 {[%clk 00:29:33]} {[%emt
00:00:10]} Ke7 {[%clk 00:23:00]} {[%emt 00:00:09]} 52. Nc6+ {[%clk 00:29:45]}
{[%emt 00:00:19]} Kd6 {[%clk 00:23:23]} {[%emt 00:00:07]} 53. f5 {[%clk
00:29:58]} {[%emt 00:00:17]} Ng2 {[%emt 00:00:37]} 54. Nd4 {[%emt 00:01:48]}
Kc5 {[%clk 00:20:43]} {[%emt 00:00:44]} 55. Ne6+ {[%clk 00:30:20]} {[%emt
00:00:09]} Kxc4 {[%clk 00:20:51]} {[%emt 00:00:22]} 56. Nxc7 {[%clk 00:30:35]}
{[%emt 00:00:15]} Nh4 {[%clk 00:21:03]} {[%emt 00:00:17]} 57. d6 {[%clk
00:30:50]} {[%emt 00:00:16]} Nxf5 {[%clk 00:20:26]} {[%emt 00:01:06]} 58. Kxf5
{[%clk 00:31:12]} {[%emt 00:00:09]} 1-0

[Event "Schack-SM 2023: Veteran-SM 50+"]
[Site "Helsingborg Arena, Mellersta Stenbocksgatan 14, Helsingborg, Sweden"]
[Date "2023.07.04"]
[Round "4.6"]
[White "Kirppo, Ronny"]
[Black "Bengtsson, Ola"]
[Result "1-0"]
[TimeControl "90 minutes for 40 moves + 30 minutes for the rest of games + 30 seconds per move from move one."]
[WhiteElo "1886"]
[BlackElo "1991"]

1. d4 {[%clk 01:30:57]} {[%emt 00:00:01]} Nf6 {[%clk 01:30:46]} {[%emt
00:00:14]} 2. c4 {[%clk 01:31:20]} {[%emt 00:00:07]} g6 {[%clk 01:31:08]}
{[%emt 00:00:08]} 3. Nc3 {[%clk 01:31:34]} {[%emt 00:00:16]} Bg7 {[%clk
01:31:27]} {[%emt 00:00:11]} 4. Nf3 {[%clk 01:31:41]} {[%emt 00:00:23]} O-O
{[%clk 01:31:31]} {[%emt 00:00:26]} 5. g3 {[%clk 01:32:06]} {[%emt 00:00:05]}
c5 {[%clk 01:28:16]} {[%emt 00:03:45]} 6. d5 {[%clk 01:32:23]} {[%emt
00:00:13]} e6 {[%clk 01:28:31]} {[%emt 00:00:15]} 7. Bg2 {[%clk 01:32:38]}
{[%emt 00:00:15]} exd5 {[%clk 01:28:51]} {[%emt 00:00:11]} 8. cxd5 {[%clk
01:32:59]} {[%emt 00:00:08]} d6 {[%clk 01:28:35]} {[%emt 00:00:46]} 9. O-O
{[%clk 01:33:09]} {[%emt 00:00:20]} Na6 {[%clk 01:26:50]} {[%emt 00:02:16]} 10.
Nd2 {[%clk 01:19:34]} {[%emt 00:14:05]} Nc7 {[%clk 01:22:58]} {[%emt 00:04:22]}
11. a4 {[%clk 01:19:09]} {[%emt 00:00:55]} a6 {[%clk 01:17:56]} {[%emt
00:05:32]} 12. Nc4 {[%clk 01:10:07]} {[%emt 00:09:32]} Rb8 {[%clk 01:13:13]}
{[%emt 00:05:13]} 13. Bf4 {[%clk 00:52:19]} {[%emt 00:18:17]} b5 {[%clk
01:08:25]} {[%emt 00:05:19]} 14. axb5 {[%clk 00:47:48]} {[%emt 00:05:00]} axb5
{[%clk 01:07:28]} {[%emt 00:01:27]} 15. Nxd6 {[%clk 00:48:08]} {[%emt
00:00:10]} Nh5 {[%clk 01:02:31]} {[%emt 00:05:27]} 16. Nxc8 {[%clk 00:46:17]}
{[%emt 00:02:21]} Nxf4 {[%clk 01:01:48]} {[%emt 00:01:12]} 17. Ne7+ {[%clk
00:46:12]} {[%emt 00:00:36]} Qxe7 {[%clk 00:44:29]} {[%emt 00:17:50]} 18. d6
{[%clk 00:45:44]} {[%emt 00:00:58]} Qd7 {[%clk 00:35:03]} {[%emt 00:09:56]} 19.
dxc7 {[%clk 00:45:27]} {[%emt 00:00:47]} Qxd1 {[%clk 00:32:30]} {[%emt
00:03:03]} 20. Rfxd1 {[%clk 00:42:45]} {[%emt 00:03:12]} 1-0

[Event "Schack-SM 2023: Mastarklassen-elit"]
[Site "Helsingborg Arena, Mellersta Stenbocksgatan 14, Helsingborg, Sweden"]
[Date "2023.07.04"]
[Round "4.5"]
[White "Walinder, Lars"]
[Black "Thorn, Eric"]
[Result "0-1"]
[TimeControl "90 minutes for 40 moves + 30 minutes for the rest of games + 30 seconds per move from move one."]
[WhiteTitle "FM"]
[BlackTitle "FM"]
[WhiteElo "2310"]
[BlackElo "2379"]

1. c4 {[%clk 01:30:52]} {[%emt 00:00:08]} c5 {[%clk 01:30:53]} {[%emt
00:00:08]} 2. Nf3 {[%clk 01:31:12]} {[%emt 00:00:09]} Nc6 {[%clk 01:31:17]}
{[%emt 00:00:07]} 3. d4 {[%clk 01:31:18]} {[%emt 00:00:25]} cxd4 {[%clk
01:31:42]} {[%emt 00:00:05]} 4. Nxd4 {[%clk 01:31:42]} {[%emt 00:00:06]} Nf6
{[%clk 01:32:06]} {[%emt 00:00:06]} 5. Nc3 {[%clk 01:31:48]} {[%emt 00:00:23]}
e6 {[%clk 01:32:30]} {[%emt 00:00:06]} 6. a3 {[%clk 01:31:30]} {[%emt
00:00:48]} Bc5 {[%clk 01:32:43]} {[%emt 00:00:17]} 7. Nb3 {[%clk 01:26:57]}
{[%emt 00:05:03]} Bb6 {[%clk 01:32:34]} {[%emt 00:00:39]} 8. c5 {[%clk
01:22:05]} {[%emt 00:05:22]} Bc7 {[%clk 01:30:47]} {[%emt 00:02:17]} 9. e4
{[%clk 01:22:24]} {[%emt 00:00:11]} O-O {[%clk 01:30:08]} {[%emt 00:01:09]} 10.
Be2 {[%clk 01:22:05]} {[%emt 00:00:48]} b6 {[%clk 01:29:56]} {[%emt 00:00:43]}
11. cxb6 {[%clk 01:05:18]} {[%emt 00:17:17]} Bxb6 {[%clk 01:30:17]} {[%emt
00:00:09]} 12. Bg5 {[%clk 01:02:45]} {[%emt 00:03:02]} h6 {[%clk 01:29:59]}
{[%emt 00:00:49]} 13. Bh4 {[%clk 00:59:43]} {[%emt 00:03:32]} Ne5 {[%clk
01:29:11]} {[%emt 00:01:18]} 14. O-O {[%clk 00:52:00]} {[%emt 00:08:13]} Ng6
{[%clk 01:23:18]} {[%emt 00:06:20]} 15. Bg3 {[%clk 00:52:13]} {[%emt 00:00:18]}
e5 {[%clk 01:23:43]} {[%emt 00:00:06]} 16. Qd2 {[%clk 00:44:56]} {[%emt
00:07:48]} Bb7 {[%clk 01:13:28]} {[%emt 00:10:44]} 17. Bf3 {[%clk 00:43:36]}
{[%emt 00:01:50]} Qe7 {[%clk 01:08:10]} {[%emt 00:05:48]} 18. Rfd1 {[%clk
00:38:24]} {[%emt 00:05:42]} Rfd8 {[%clk 01:00:23]} {[%emt 00:08:17]} 19. Qe2
{[%clk 00:22:30]} {[%emt 00:16:24]} d6 {[%clk 00:55:57]} {[%emt 00:04:55]} 20.
Rd2 {[%clk 00:16:57]} {[%emt 00:06:03]} Qe6 {[%clk 00:54:21]} {[%emt 00:02:06]}
21. Qd1 {[%clk 00:12:13]} {[%emt 00:05:15]} Rab8 {[%clk 00:48:28]} {[%emt
00:06:23]} 22. a4 {[%clk 00:11:45]} {[%emt 00:00:58]} a6 {[%clk 00:45:37]}
{[%emt 00:03:21]} 23. Ra3 {[%clk 00:11:23]} {[%emt 00:00:51]} Ba8 {[%clk
00:38:52]} {[%emt 00:07:16]} 24. h3 {[%clk 00:11:22]} {[%emt 00:00:31]} Ba7
{[%clk 00:37:34]} {[%emt 00:01:48]} 25. Bg4 {[%clk 00:09:49]} {[%emt 00:02:02]}
Nxg4 {[%clk 00:36:40]} {[%emt 00:01:24]} 26. Qxg4 {[%clk 00:07:09]} {[%emt
00:03:10]} Qxg4 {[%clk 00:35:39]} {[%emt 00:01:32]} 27. hxg4 {[%clk 00:07:36]}
{[%emt 00:00:03]} Rb4 {[%clk 00:36:02]} {[%emt 00:00:06]} 28. Kf1 {[%clk
00:04:30]} {[%emt 00:03:37]} Bxe4 {[%clk 00:33:38]} {[%emt 00:02:54]} 29. Nxe4
{[%clk 00:04:58]} {[%emt 00:00:02]} Rxe4 {[%clk 00:34:03]} {[%emt 00:00:05]} 30.
f3 {[%clk 00:04:46]} {[%emt 00:00:43]} Rc4 {[%clk 00:31:59]} {[%emt 00:02:33]}
31. Ra1 {[%clk 00:04:44]} {[%emt 00:00:31]} Rb8 {[%clk 00:29:16]} {[%emt
00:03:13]} 32. Na5 {[%clk 00:04:28]} {[%emt 00:00:47]} Rc7 {[%clk 00:23:42]}
{[%emt 00:06:04]} 33. Rxd6 {[%clk 00:04:29]} {[%emt 00:00:29]} Rxb2 {[%clk
00:23:16]} {[%emt 00:00:56]} 34. Rxa6 {[%clk 00:02:17]} {[%emt 00:02:42]} Bb6
{[%clk 00:20:32]} {[%emt 00:03:13]} 35. Rd1 {[%clk 00:01:04]} {[%emt 00:01:43]}
Rcc2 {[%clk 00:20:08]} {[%emt 00:00:54]} 36. Nb7 {[%clk 00:01:18]} {[%emt
00:00:18]} Bd4 {[%clk 00:19:52]} {[%emt 00:00:45]} 37. Nd6 {[%clk 00:00:46]}
{[%emt 00:01:02]} Rxg2 {[%clk 00:19:50]} {[%emt 00:00:31]} 38. Rxd4 {[%clk
00:00:40]} {[%emt 00:00:38]} exd4 {[%clk 00:20:12]} {[%emt 00:00:06]} 39. Ne4
{[%clk 00:00:55]} {[%emt 00:00:15]} Rgc2 {[%clk 00:18:39]} {[%emt 00:02:04]} 40.
Ra8+ {[%clk 00:01:19]} {[%emt 00:00:06]} Kh7 {[%clk 00:18:31]} {[%emt
00:00:37]} 41. Re8 {[%clk 00:00:31]} {[%emt 00:01:19]} d3 {[%clk 00:16:28]}
{[%emt 00:02:32]} 42. Be1 {[%clk 00:29:35]} {[%emt 00:01:26]} Rh2 {[%clk
00:43:53]} {[%emt 00:03:05]} 43. Kg1 {[%clk 00:28:27]} {[%emt 00:01:38]} Rbg2+
{[%clk 00:43:00]} {[%emt 00:01:23]} 44. Kf1 {[%clk 00:28:55]} {[%emt 00:00:02]}
Nf4 {[%clk 00:43:16]} {[%emt 00:00:15]} 0-1

[Event "Schack-SM 2023: Mastarklassen"]
[Site "Helsingborg Arena, Mellersta Stenbocksgatan 14, Helsingborg, Sweden"]
[Date "2023.07.04"]
[Round "4.1"]
[White "Lundin, Jan"]
[Black "Nygren, David"]
[Result "0-1"]
[TimeControl "90 minutes for 40 moves + 30 minutes for the rest of games + 30 seconds per move from move one."]
[WhiteTitle "FM"]
[WhiteElo "2203"]
[BlackElo "2157"]

1. e4 {[%clk 01:30:58]} {[%emt 00:00:01]} c5 {[%clk 01:30:15]} {[%emt
00:00:46]} 2. Nc3 {[%clk 01:31:12]} {[%emt 00:00:16]} a6 {[%clk 01:29:08]}
{[%emt 00:01:37]} 3. g3 {[%clk 01:31:21]} {[%emt 00:00:21]} Nc6 {[%clk
01:28:05]} {[%emt 00:01:33]} 4. Bg2 {[%clk 01:31:40]} {[%emt 00:00:10]} g6
{[%clk 01:27:46]} {[%emt 00:00:50]} 5. d3 {[%clk 01:31:02]} {[%emt 00:01:08]}
Bg7 {[%clk 01:27:10]} {[%emt 00:01:06]} 6. f4 {[%clk 01:30:11]} {[%emt
00:01:21]} d6 {[%clk 01:23:45]} {[%emt 00:03:55]} 7. Nf3 {[%clk 01:30:21]}
{[%emt 00:00:20]} e6 {[%clk 01:22:48]} {[%emt 00:01:28]} 8. O-O {[%clk
01:30:32]} {[%emt 00:00:18]} Nge7 {[%clk 01:22:46]} {[%emt 00:00:32]} 9. Rb1
{[%clk 01:30:12]} {[%emt 00:00:49]} O-O {[%clk 01:21:38]} {[%emt 00:01:38]} 10.
Bd2 {[%clk 01:30:30]} {[%emt 00:00:14]} b6 {[%clk 01:17:59]} {[%emt 00:04:08]}
11. a3 {[%clk 01:22:57]} {[%emt 00:08:03]} Bb7 {[%clk 01:15:24]} {[%emt
00:03:05]} 12. Ne2 {[%clk 01:16:45]} {[%emt 00:06:41]} d5 {[%clk 01:10:55]}
{[%emt 00:05:00]} 13. Bc3 {[%clk 01:01:10]} {[%emt 00:16:05]} Bxc3 {[%clk
01:05:03]} {[%emt 00:06:22]} 14. Nxc3 {[%clk 00:54:58]} {[%emt 00:06:42]} dxe4
{[%clk 00:59:14]} {[%emt 00:06:19]} 15. Nxe4 {[%clk 00:54:00]} {[%emt
00:01:28]} Nf5 {[%clk 00:56:48]} {[%emt 00:02:56]} 16. Re1 {[%clk 00:52:15]}
{[%emt 00:02:14]} Ncd4 {[%clk 00:55:43]} {[%emt 00:01:36]} 17. c3 {[%clk
00:50:18]} {[%emt 00:02:26]} Bxe4 {[%clk 00:52:13]} {[%emt 00:04:00]} 18. dxe4
{[%clk 00:49:33]} {[%emt 00:01:15]} Nxf3+ {[%clk 00:52:27]} {[%emt 00:00:16]}
19. Qxf3 {[%clk 00:45:22]} {[%emt 00:04:41]} Ne7 {[%clk 00:51:52]} {[%emt
00:01:06]} 20. f5 {[%clk 00:44:24]} {[%emt 00:01:28]} exf5 {[%clk 00:48:05]}
{[%emt 00:04:17]} 21. exf5 {[%clk 00:44:38]} {[%emt 00:00:16]} Ra7 {[%clk
00:48:06]} {[%emt 00:00:30]} 22. f6 {[%clk 00:42:56]} {[%emt 00:02:11]} Nf5
{[%clk 00:47:00]} {[%emt 00:01:35]} 23. Rbd1 {[%clk 00:40:08]} {[%emt
00:03:17]} Rd7 {[%clk 00:46:19]} {[%emt 00:01:13]} 24. Rxd7 {[%clk 00:33:21]}
{[%emt 00:07:18]} Qxd7 {[%clk 00:46:42]} {[%emt 00:00:06]} 25. Bh3 {[%clk
00:24:13]} {[%emt 00:09:38]} Qd2 {[%clk 00:42:10]} {[%emt 00:05:02]} 26. Rd1
{[%clk 00:22:22]} {[%emt 00:02:20]} Qg5 {[%clk 00:37:08]} {[%emt 00:05:32]} 27.
Bxf5 {[%clk 00:17:58]} {[%emt 00:04:55]} gxf5 {[%clk 00:37:24]} {[%emt
00:00:14]} 28. Rd6 {[%clk 00:15:39]} {[%emt 00:02:47]} Re8 {[%clk 00:34:29]}
{[%emt 00:03:27]} 29. Kg2 {[%clk 00:15:45]} {[%emt 00:00:23]} h6 {[%clk
00:25:02]} {[%emt 00:09:57]} 30. h4 {[%clk 00:14:56]} {[%emt 00:01:19]} Qc1
{[%clk 00:20:25]} {[%emt 00:05:05]} 31. Qxf5 {[%clk 00:13:23]} {[%emt
00:02:06]} Qxb2+ {[%clk 00:15:24]} {[%emt 00:05:31]} 32. Kh3 {[%clk 00:12:55]}
{[%emt 00:00:57]} Qe2 {[%clk 00:13:51]} {[%emt 00:02:03]} 33. Rxb6 {[%clk
00:09:30]} {[%emt 00:03:56]} Kh8 {[%clk 00:09:30]} {[%emt 00:04:49]} 34. Rd6
{[%clk 00:05:49]} {[%emt 00:04:11]} Rg8 {[%clk 00:07:17]} {[%emt 00:02:45]} 35.
Rd3 {[%clk 00:03:54]} {[%emt 00:02:23]} c4 {[%clk 00:06:02]} {[%emt 00:01:47]}
36. Rf3 {[%clk 00:02:52]} {[%emt 00:01:32]} Qe1 {[%clk 00:06:12]} {[%emt
00:00:19]} 37. Kh2 {[%clk 00:02:31]} {[%emt 00:00:51]} Rd8 {[%clk 00:04:27]}
{[%emt 00:02:16]} 38. Kh3 {[%clk 00:02:02]} {[%emt 00:00:59]} Qh1+ {[%clk
00:04:22]} {[%emt 00:00:34]} 39. Kg4 {[%clk 00:02:28]} {[%emt 00:00:04]} Rg8+
{[%clk 00:04:39]} {[%emt 00:00:14]} 40. Kh5 {[%clk 00:02:44]} {[%emt 00:00:14]}
Rg5+ {[%clk 00:04:47]} {[%emt 00:00:22]} 41. Qxg5 {[%clk 00:02:49]} {[%emt
00:00:25]} hxg5 {[%clk 00:05:06]} {[%emt 00:00:11]} 0-1

[Event "Schack-SM 2023: Mastarklassen"]
[Site "Helsingborg Arena, Mellersta Stenbocksgatan 14, Helsingborg, Sweden"]
[Date "2023.07.04"]
[Round "4.2"]
[White "Mardell, Jimmy"]
[Black "Cederstam, Carl"]
[Result "0-1"]
[TimeControl "90 minutes for 40 moves + 30 minutes for the rest of games + 30 seconds per move from move one."]
[BlackTitle "FM"]
[WhiteElo "2160"]
[BlackElo "2196"]

1. d4 {[%clk 01:30:54]} {[%emt 00:00:05]} Nf6 {[%clk 01:29:52]} {[%emt
00:01:00]} 2. c4 {[%clk 01:31:20]} {[%emt 00:00:13]} c5 {[%clk 01:29:34]}
{[%emt 00:00:47]} 3. d5 {[%clk 01:30:25]} {[%emt 00:01:25]} b5 {[%clk
01:29:29]} {[%emt 00:00:35]} 4. cxb5 {[%clk 01:30:44]} {[%emt 00:00:11]} a6
{[%clk 01:29:53]} {[%emt 00:00:06]} 5. f3 {[%clk 01:30:56]} {[%emt 00:00:19]}
axb5 {[%clk 01:29:38]} {[%emt 00:00:45]} 6. e4 {[%clk 01:31:14]} {[%emt
00:00:12]} Qa5+ {[%clk 01:29:42]} {[%emt 00:00:26]} 7. Bd2 {[%clk 01:31:34]}
{[%emt 00:00:10]} b4 {[%clk 01:30:05]} {[%emt 00:00:06]} 8. Na3 {[%clk
01:31:46]} {[%emt 00:00:18]} d6 {[%clk 01:29:14]} {[%emt 00:01:21]} 9. Nc4
{[%clk 01:28:40]} {[%emt 00:03:36]} Qd8 {[%clk 01:29:00]} {[%emt 00:00:44]} 10.
Bd3 {[%clk 01:26:24]} {[%emt 00:02:46]} e6 {[%clk 01:28:59]} {[%emt 00:00:31]}
11. dxe6 {[%clk 01:21:52]} {[%emt 00:05:02]} fxe6 {[%clk 01:28:53]} {[%emt
00:00:36]} 12. e5 {[%clk 01:11:23]} {[%emt 00:11:00]} dxe5 {[%clk 01:29:10]}
{[%emt 00:00:12]} 13. Nxe5 {[%clk 01:11:46]} {[%emt 00:00:07]} Bd6 {[%clk
01:29:31]} {[%emt 00:00:08]} 14. Bb5+ {[%clk 01:10:32]} {[%emt 00:01:45]} Nbd7
{[%clk 01:29:48]} {[%emt 00:00:13]} 15. f4 {[%clk 01:02:20]} {[%emt 00:08:42]}
O-O {[%clk 01:24:42]} {[%emt 00:05:36]} 16. Ngf3 {[%clk 01:00:33]} {[%emt
00:02:17]} Bb7 {[%clk 01:15:18]} {[%emt 00:09:55]} 17. Qb3 {[%clk 00:31:57]}
{[%emt 00:29:06]} Bd5 {[%clk 00:59:08]} {[%emt 00:16:39]} 18. Bc4 {[%clk
00:31:57]} {[%emt 00:00:30]} Bxe5 {[%clk 00:53:22]} {[%emt 00:06:16]} 19. fxe5
{[%clk 00:28:45]} {[%emt 00:03:43]} Nb6 {[%clk 00:51:26]} {[%emt 00:02:25]} 20.
Bxd5 {[%clk 00:27:08]} {[%emt 00:02:07]} Qxd5 {[%clk 00:51:24]} {[%emt
00:00:32]} 21. Qxd5 {[%clk 00:23:07]} {[%emt 00:04:31]} Nfxd5 {[%clk 00:51:34]}
{[%emt 00:00:20]} 22. O-O {[%clk 00:23:10]} {[%emt 00:00:27]} Nc4 {[%clk
00:50:16]} {[%emt 00:01:47]} 23. Rfc1 {[%clk 00:11:04]} {[%emt 00:12:36]} Rxf3
{[%clk 00:25:14]} {[%emt 00:25:32]} 24. Rxc4 {[%clk 00:11:22]} {[%emt
00:00:13]} Rd3 {[%clk 00:25:31]} {[%emt 00:00:13]} 25. Be1 {[%clk 00:09:57]}
{[%emt 00:01:55]} b3 {[%clk 00:15:48]} {[%emt 00:10:14]} 26. a3 {[%clk
00:05:37]} {[%emt 00:04:50]} Nb6 {[%clk 00:10:24]} {[%emt 00:05:53]} 27. Rxc5
{[%emt 00:01:05]} Na4 {[%clk 00:10:49]} {[%emt 00:00:03]} 28. Rb5 {[%clk
00:04:18]} {[%emt 00:01:16]} Rc8 {[%clk 00:11:15]} {[%emt 00:00:04]} 29. Rb1
{[%clk 00:03:51]} {[%emt 00:00:56]} Rc2 {[%clk 00:11:24]} {[%emt 00:00:21]} 30.
Bc3 {[%clk 00:03:38]} {[%emt 00:00:44]} Nxc3 {[%clk 00:08:55]} {[%emt
00:02:58]} 31. bxc3 {[%clk 00:03:57]} {[%emt 00:00:12]} Rdd2 {[%clk 00:08:58]}
{[%emt 00:00:27]} 32. R5xb3 {[%clk 00:03:11]} {[%emt 00:01:17]} Rxg2+ {[%clk
00:09:20]} {[%emt 00:00:06]} 33. Kh1 {[%clk 00:02:57]} {[%emt 00:00:45]} Rxh2+
{[%clk 00:09:45]} {[%emt 00:00:06]} 34. Kg1 {[%clk 00:03:25]} {[%emt 00:00:02]}
Rcg2+ {[%clk 00:08:24]} {[%emt 00:01:49]} 35. Kf1 {[%clk 00:03:51]} {[%emt
00:00:05]} Ra2 {[%clk 00:08:23]} {[%emt 00:00:31]} 36. Kg1 {[%clk 00:03:56]}
{[%emt 00:00:25]} Rhg2+ {[%clk 00:08:07]} {[%emt 00:00:45]} 37. Kh1 {[%clk
00:03:47]} {[%emt 00:00:40]} h5 {[%clk 00:06:02]} {[%emt 00:02:34]} 38. c4
{[%clk 00:04:07]} {[%emt 00:00:11]} Rgc2 {[%clk 00:05:59]} {[%emt 00:00:32]} 39.
Rh3 {[%clk 00:01:31]} {[%emt 00:03:07]} g6 {[%clk 00:06:22]} {[%emt 00:00:07]}
40. Rg1 {[%clk 00:00:41]} {[%emt 00:01:20]} Kh7 {[%clk 00:06:34]} {[%emt
00:00:17]} 41. Rd1 {[%clk 00:18:36]} {[%emt 00:12:36]} Rxc4 {[%clk 00:35:42]}
{[%emt 00:01:22]} 42. Rf3 {[%clk 00:17:41]} {[%emt 00:01:24]} Re4 {[%clk
00:35:18]} {[%emt 00:00:52]} 43. Rf6 {[%clk 00:17:17]} {[%emt 00:00:57]} Rxe5
{[%clk 00:34:12]} {[%emt 00:01:36]} 44. Rg1 {[%clk 00:13:50]} {[%emt 00:03:57]}
g5 {[%clk 00:34:37]} {[%emt 00:00:05]} 45. Rb1 {[%clk 00:09:17]} {[%emt
00:05:03]} Kg7 {[%clk 00:34:48]} {[%emt 00:00:19]} 46. Rf3 {[%clk 00:09:36]}
{[%emt 00:00:11]} g4 {[%clk 00:35:03]} {[%emt 00:00:14]} 0-1